[Event "Early-Titled-Tuesday-Blitz-May-07-2024"]
[Site "Chess.com"]
[Date "2024.05.07"]
[Round "3"]
[White "subham777"]
[Black "remyrushbrooke"]
[Result "0-1"]
[WhiteElo "2489"]
[BlackElo "2294"]
[TimeControl "180+1"]
[EndTime "8:32:11 PDT"]
[Termination "remyrushbrooke won by resignation"]

1. e4 {[%clk 0:02:57.1]} 1... g6 {[%clk 0:03:00.2]} 2. g3 {[%clk 0:02:56.9]}
2... Bg7 {[%clk 0:03:00.2]} 3. Bg2 {[%clk 0:02:57]} 3... d6 {[%clk 0:02:55.8]}
4. Ne2 {[%clk 0:02:56.4]} 4... c5 {[%clk 0:02:54.3]} 5. O-O {[%clk 0:02:41.4]}
5... Nc6 {[%clk 0:02:54.5]} 6. c3 {[%clk 0:02:23]} 6... e5 {[%clk 0:02:46.7]} 7.
f4 {[%clk 0:02:14.4]} 7... Nge7 {[%clk 0:02:45.3]} 8. d3 {[%clk 0:02:11.8]} 8...
O-O {[%clk 0:02:44.4]} 9. h3 {[%clk 0:01:46.4]} 9... d5 {[%clk 0:02:36.9]} 10.
Nd2 {[%clk 0:01:14.9]} 10... Be6 {[%clk 0:02:14.7]} 11. g4 {[%clk 0:01:12.2]}
11... f5 {[%clk 0:01:46.3]} 12. exf5 {[%clk 0:01:07.3]} 12... gxf5 {[%clk
0:01:45.3]} 13. fxe5 {[%clk 0:01:06.8]} 13... Nxe5 {[%clk 0:01:40.4]} 14. Nf4
{[%clk 0:01:06]} 14... Bf7 {[%clk 0:01:39.8]} 15. Nf3 {[%clk 0:00:58]} 15...
Nxf3+ {[%clk 0:01:12.8]} 16. Qxf3 {[%clk 0:00:58.1]} 16... fxg4 {[%clk
0:01:05.1]} 17. hxg4 {[%clk 0:00:51.2]} 17... Kh8 {[%clk 0:00:47.5]} 18. Bd2
{[%clk 0:00:43.2]} 18... Qd7 {[%clk 0:00:25.7]} 19. Rae1 {[%clk 0:00:36.6]}
19... Ng6 {[%clk 0:00:25.8]} 20. Qh3 {[%clk 0:00:31.8]} 20... Nxf4 {[%clk
0:00:24.7]} 21. Bxf4 {[%clk 0:00:31.2]} 21... Be6 {[%clk 0:00:23.5]} 22. Qg3
{[%clk 0:00:15]} 22... Bxg4 {[%clk 0:00:20.9]} 23. Be5 {[%clk 0:00:15.7]} 23...
Rg8 {[%clk 0:00:16]} 24. Bxg7+ {[%clk 0:00:11.4]} 24... Rxg7 {[%clk 0:00:16.9]}
25. Qe5 {[%clk 0:00:11.5]} 25... Rg8 {[%clk 0:00:14.9]} 26. Re3 {[%clk
0:00:08.2]} 26... Bh3 {[%clk 0:00:13.4]} 27. Rg3 {[%clk 0:00:04.4]} 27... Bxg2
{[%clk 0:00:11]} 28. Rxg2 {[%clk 0:00:04.5]} 28... h6 {[%clk 0:00:10.1]} 29. Rf6
{[%clk 0:00:01.9]} 29... Kh7 {[%clk 0:00:09.2]} 30. Rf2 {[%clk 0:00:00.8]} 30...
Rxg2+ {[%clk 0:00:08.7]} 31. Rxg2 {[%clk 0:00:01.7]} 31... Rxg2+ {[%clk
0:00:08.9]} 32. Kxg2 {[%clk 0:00:02.6]} 32... Qg7+ {[%clk 0:00:08.1]} 33. Qxg7+
{[%clk 0:00:03.3]} 33... Kxg7 {[%clk 0:00:08.8]} 34. Kg3 {[%clk 0:00:03.9]}
34... Kf6 {[%clk 0:00:09.5]} 35. Kh4 {[%clk 0:00:03.6]} 35... Ke5 {[%clk
0:00:10.2]} 36. Kh5 {[%clk 0:00:03]} 36... Kf4 {[%clk 0:00:11.1]} 37. c4 {[%clk
0:00:01.9]} 37... dxc4 {[%clk 0:00:10.9]} 38. dxc4 {[%clk 0:00:02]} 38... Ke4
{[%clk 0:00:11.8]} 39. Kxh6 {[%clk 0:00:02.3]} 39... Kd4 {[%clk 0:00:12.6]} 40.
b3 {[%clk 0:00:03]} 40... Kc3 {[%clk 0:00:13]} 41. Kg5 {[%clk 0:00:03.8]} 41...
Kb2 {[%clk 0:00:13.6]} 42. Kf5 {[%clk 0:00:04.7]} 42... Kxa2 {[%clk 0:00:14.2]}
43. Ke4 {[%clk 0:00:05.5]} 43... Kxb3 {[%clk 0:00:14.6]} 44. Kd5 {[%clk
0:00:06.4]} 44... Kb4 {[%clk 0:00:14.7]} 0-1

[Event "Early-Titled-Tuesday-Blitz-May-07-2024"]
[Site "Chess.com"]
[Date "2024.05.07"]
[Round "3"]
[White "Vasily85"]
[Black "MokshAD1603"]
[Result "0-1"]
[WhiteElo "2445"]
[BlackElo "2621"]
[TimeControl "180+1"]
[EndTime "8:32:12 PDT"]
[Termination "MokshAD1603 won by resignation"]

1. e4 {[%clk 0:03:00.9]} 1... c5 {[%clk 0:02:53.1]} 2. Nf3 {[%clk 0:03:00.9]}
2... d6 {[%clk 0:02:53.3]} 3. Bb5+ {[%clk 0:03:00.6]} 3... Nd7 {[%clk
0:02:52.9]} 4. c4 {[%clk 0:02:52.1]} 4... Nf6 {[%clk 0:02:51.1]} 5. Nc3 {[%clk
0:02:52.2]} 5... g6 {[%clk 0:02:49.5]} 6. O-O {[%clk 0:02:50.8]} 6... Bg7 {[%clk
0:02:49.5]} 7. d4 {[%clk 0:02:49.9]} 7... cxd4 {[%clk 0:02:49.5]} 8. Nxd4 {[%clk
0:02:50.8]} 8... O-O {[%clk 0:02:49.6]} 9. Bxd7 {[%clk 0:02:38.5]} 9... Bxd7
{[%clk 0:02:50.5]} 10. f3 {[%clk 0:02:19.8]} 10... Rc8 {[%clk 0:02:26.5]} 11. b3
{[%clk 0:02:18.4]} 11... a6 {[%clk 0:02:27.2]} 12. a4 {[%clk 0:02:03.8]} 12...
Qa5 {[%clk 0:01:35.3]} 13. Bd2 {[%clk 0:01:43.6]} 13... Nxe4 {[%clk 0:01:25.3]}
14. Nxe4 {[%clk 0:01:03.6]} 14... Bxd4+ {[%clk 0:01:25.2]} 15. Kh1 {[%clk
0:01:04.3]} 15... Qc7 {[%clk 0:01:17]} 16. Bh6 {[%clk 0:00:57.4]} 16... Bg7
{[%clk 0:01:16.4]} 17. Bxg7 {[%clk 0:00:57.4]} 17... Kxg7 {[%clk 0:01:17.3]} 18.
Qd4+ {[%clk 0:00:57.4]} 18... Kg8 {[%clk 0:01:09.7]} 19. a5 {[%clk 0:00:33]}
19... Bc6 {[%clk 0:01:07.5]} 20. Nc3 {[%clk 0:00:28.4]} 20... Qd7 {[%clk
0:00:55.9]} 21. Rfe1 {[%clk 0:00:26.8]} 21... Rfe8 {[%clk 0:00:55]} 22. Rad1
{[%clk 0:00:24.4]} 22... Qf5 {[%clk 0:00:55.3]} 23. Rd2 {[%clk 0:00:18.4]} 23...
Qxa5 {[%clk 0:00:54.7]} 24. h4 {[%clk 0:00:13.5]} 24... Qc5 {[%clk 0:00:53.5]}
25. Qf4 {[%clk 0:00:12.8]} 25... Qf5 {[%clk 0:00:40.8]} 26. Qh6 {[%clk
0:00:08.1]} 26... Rcd8 {[%clk 0:00:37]} 27. Rde2 {[%clk 0:00:07.9]} 27... Bxf3
{[%clk 0:00:34.1]} 28. gxf3 {[%clk 0:00:03.3]} 28... Qxf3+ {[%clk 0:00:35]} 29.
Kg1 {[%clk 0:00:03.5]} 29... Qxc3 {[%clk 0:00:35]} 30. Rxe7 {[%clk 0:00:03.7]}
30... Qg3+ {[%clk 0:00:34.2]} 31. Kf1 {[%clk 0:00:03.6]} 31... Qf3+ {[%clk
0:00:27.2]} 32. Kg1 {[%clk 0:00:04]} 32... Qg4+ {[%clk 0:00:26.9]} 33. Kf1
{[%clk 0:00:02.8]} 33... Qf5+ {[%clk 0:00:20.1]} 34. Kg1 {[%clk 0:00:02.9]}
34... Rxe7 {[%clk 0:00:20.4]} 35. Rxe7 {[%clk 0:00:03.8]} 35... Qf6 {[%clk
0:00:20.5]} 36. Rxb7 {[%clk 0:00:02.9]} 36... Re8 {[%clk 0:00:19.8]} 37. Qg5
{[%clk 0:00:00.5]} 37... Re1+ {[%clk 0:00:19]} 38. Kg2 {[%clk 0:00:01.1]} 38...
Qf1+ {[%clk 0:00:19.2]} 39. Kg3 {[%clk 0:00:01.6]} 39... Qg1+ {[%clk 0:00:19.6]}
40. Kh3 {[%clk 0:00:02.1]} 40... Re3+ {[%clk 0:00:19.3]} 0-1

[Event "Early-Titled-Tuesday-Blitz-May-07-2024"]
[Site "Chess.com"]
[Date "2024.05.07"]
[Round "3"]
[White "nuadvaga"]
[Black "ab-lsv"]
[Result "0-1"]
[WhiteElo "2145"]
[BlackElo "2383"]
[TimeControl "180+1"]
[EndTime "8:32:12 PDT"]
[Termination "ab-lsv won by checkmate"]

1. d4 {[%clk 0:03:00.9]} 1... d5 {[%clk 0:02:59.3]} 2. f3 {[%clk 0:02:54.4]}
2... c5 {[%clk 0:02:57.7]} 3. dxc5 {[%clk 0:02:50.6]} 3... e6 {[%clk 0:02:56]}
4. e4 {[%clk 0:02:49.7]} 4... Bxc5 {[%clk 0:02:55.2]} 5. Bf4 {[%clk 0:02:42.7]}
5... Qb6 {[%clk 0:02:48.3]} 6. Nh3 {[%clk 0:02:10.6]} 6... Qxb2 {[%clk
0:02:46.1]} 7. Nd2 {[%clk 0:02:08.6]} 7... Nf6 {[%clk 0:02:37.3]} 8. Bd3 {[%clk
0:02:07.6]} 8... Nc6 {[%clk 0:02:30.2]} 9. Rb1 {[%clk 0:01:59.8]} 9... Qxa2
{[%clk 0:02:23.9]} 10. exd5 {[%clk 0:01:54.6]} 10... exd5 {[%clk 0:01:58.8]} 11.
Qe2+ {[%clk 0:01:49.4]} 11... Be6 {[%clk 0:01:58.9]} 12. Be3 {[%clk 0:01:49.2]}
12... Bxe3 {[%clk 0:01:23.1]} 13. Qxe3 {[%clk 0:01:48]} 13... O-O {[%clk
0:01:22.5]} 14. O-O {[%clk 0:01:45.7]} 14... Bxh3 {[%clk 0:01:18]} 15. gxh3
{[%clk 0:01:44.8]} 15... Rfe8 {[%clk 0:01:17.3]} 16. Qg5 {[%clk 0:01:38.6]}
16... Qa5 {[%clk 0:00:59.7]} 17. Nb3 {[%clk 0:01:27.7]} 17... Qc7 {[%clk
0:00:54.6]} 18. Kh1 {[%clk 0:01:26.7]} 18... Qe5 {[%clk 0:00:50.6]} 19. Qh4
{[%clk 0:01:16.9]} 19... Qh5 {[%clk 0:00:45.8]} 20. Qg3 {[%clk 0:01:16.6]} 20...
Re3 {[%clk 0:00:42.9]} 21. Nc5 {[%clk 0:01:13.7]} 21... b6 {[%clk 0:00:40.3]}
22. Nb3 {[%clk 0:00:55.8]} 22... Rae8 {[%clk 0:00:32.9]} 23. Nd2 {[%clk
0:00:47.2]} 23... Nd4 {[%clk 0:00:30.6]} 24. Rg1 {[%clk 0:00:44]} 24... g6
{[%clk 0:00:29.3]} 25. Rbf1 {[%clk 0:00:33.5]} 25... Kg7 {[%clk 0:00:27.5]} 26.
Qf4 {[%clk 0:00:20.5]} 26... Qe5 {[%clk 0:00:17.1]} 27. Qh4 {[%clk 0:00:17.9]}
27... Nf5 {[%clk 0:00:14.9]} 28. Qf2 {[%clk 0:00:17]} 28... a5 {[%clk
0:00:13.7]} 29. Rb1 {[%clk 0:00:14.3]} 29... Qf4 {[%clk 0:00:11]} 30. Nf1 {[%clk
0:00:14.6]} 30... Rxf3 {[%clk 0:00:10.9]} 31. Qg2 {[%clk 0:00:12.3]} 31... Rf2
{[%clk 0:00:10]} 32. Bxf5 {[%clk 0:00:07]} 32... Qxf5 {[%clk 0:00:08.5]} 33. Qg3
{[%clk 0:00:06.4]} 33... Ne4 {[%clk 0:00:07.3]} 34. Qe3 {[%clk 0:00:03.7]} 34...
d4 {[%clk 0:00:06.5]} 35. Qxd4+ {[%clk 0:00:03.6]} 35... Re5 {[%clk 0:00:04.9]}
36. Ng3 {[%clk 0:00:04.5]} 36... Qf3+ {[%clk 0:00:04.9]} 37. Rg2 {[%clk
0:00:03.4]} 37... Qxg2# {[%clk 0:00:05.2]} 0-1

[Event "Early-Titled-Tuesday-Blitz-May-07-2024"]
[Site "Chess.com"]
[Date "2024.05.07"]
[Round "3"]
[White "DenisQ"]
[Black "erlesfar"]
[Result "0-1"]
[WhiteElo "2706"]
[BlackElo "2436"]
[TimeControl "180+1"]
[EndTime "8:32:13 PDT"]
[Termination "erlesfar won by resignation"]

1. Nf3 {[%clk 0:03:00.9]} 1... g6 {[%clk 0:02:56.4]} 2. g3 {[%clk 0:03:00]} 2...
Bg7 {[%clk 0:02:56.4]} 3. Bg2 {[%clk 0:03:00.1]} 3... e6 {[%clk 0:02:52.4]} 4.
O-O {[%clk 0:02:59.6]} 4... Ne7 {[%clk 0:02:52.5]} 5. c4 {[%clk 0:02:59]} 5...
O-O {[%clk 0:02:52.2]} 6. Nc3 {[%clk 0:02:56.4]} 6... d5 {[%clk 0:02:51.7]} 7.
d4 {[%clk 0:02:50]} 7... Nbc6 {[%clk 0:02:49.1]} 8. cxd5 {[%clk 0:02:44.5]} 8...
exd5 {[%clk 0:02:42.4]} 9. Bf4 {[%clk 0:02:42.8]} 9... Bf5 {[%clk 0:02:35.8]}
10. Rc1 {[%clk 0:02:40]} 10... a6 {[%clk 0:02:30.8]} 11. Qd2 {[%clk 0:02:27.7]}
11... Re8 {[%clk 0:02:26.9]} 12. Rfd1 {[%clk 0:02:22.2]} 12... Be4 {[%clk
0:02:17.7]} 13. Nxe4 {[%clk 0:02:04.3]} 13... dxe4 {[%clk 0:02:15.3]} 14. Ng5
{[%clk 0:01:57.4]} 14... Qxd4 {[%clk 0:01:52.4]} 15. Nxe4 {[%clk 0:01:29.7]}
15... Nd5 {[%clk 0:01:21.8]} 16. Qc2 {[%clk 0:01:25.5]} 16... Nxf4 {[%clk
0:01:16.2]} 17. gxf4 {[%clk 0:01:00]} 17... Qb4 {[%clk 0:00:43.1]} 18. e3 {[%clk
0:00:55.5]} 18... Rad8 {[%clk 0:00:37.1]} 19. Nc5 {[%clk 0:00:36.8]} 19... Qxb2
{[%clk 0:00:26.4]} 20. Qxb2 {[%clk 0:00:29.2]} 20... Bxb2 {[%clk 0:00:25.1]} 21.
Rxd8 {[%clk 0:00:25.7]} 21... Nxd8 {[%clk 0:00:21.8]} 22. Rb1 {[%clk 0:00:24]}
22... Ba3 {[%clk 0:00:20.2]} 23. Nxb7 {[%clk 0:00:23.4]} 23... Nxb7 {[%clk
0:00:20.2]} 24. Rxb7 {[%clk 0:00:22.2]} 24... Bd6 {[%clk 0:00:20]} 25. Bd5
{[%clk 0:00:20.5]} 25... Kg7 {[%clk 0:00:18.2]} 26. Ra7 {[%clk 0:00:19.1]} 26...
Rb8 {[%clk 0:00:18.2]} 27. Rxa6 {[%clk 0:00:18.8]} 27... Rb1+ {[%clk 0:00:18.2]}
28. Kg2 {[%clk 0:00:18.4]} 28... Rb2 {[%clk 0:00:18.9]} 29. Rc6 {[%clk
0:00:16.1]} 29... Rd2 {[%clk 0:00:19]} 30. Bb3 {[%clk 0:00:15.7]} 30... h5
{[%clk 0:00:19.6]} 31. Kf3 {[%clk 0:00:15.5]} 31... h4 {[%clk 0:00:20]} 32. h3
{[%clk 0:00:15.5]} 32... Rb2 {[%clk 0:00:20.2]} 33. Bc4 {[%clk 0:00:14.8]} 33...
Rb1 {[%clk 0:00:19.2]} 34. a4 {[%clk 0:00:14.4]} 34... Rg1 {[%clk 0:00:18]} 35.
a5 {[%clk 0:00:13.6]} 35... g5 {[%clk 0:00:18.4]} 36. fxg5 {[%clk 0:00:12.2]}
36... Rxg5 {[%clk 0:00:18.8]} 37. a6 {[%clk 0:00:12.8]} 37... Ra5 {[%clk
0:00:19.3]} 38. Ke4 {[%clk 0:00:10.8]} 38... Kf6 {[%clk 0:00:19]} 39. Be2 {[%clk
0:00:09.5]} 39... Ke7 {[%clk 0:00:18.2]} 40. Rc1 {[%clk 0:00:08.4]} 40... c5
{[%clk 0:00:16.7]} 41. Kd5 {[%clk 0:00:08]} 41... Kd7 {[%clk 0:00:16.6]} 42.
Bg4+ {[%clk 0:00:07]} 42... Kc7 {[%clk 0:00:16.9]} 43. Be2 {[%clk 0:00:06.7]}
43... c4+ {[%clk 0:00:16]} 44. Kxc4 {[%clk 0:00:05.9]} 44... Rc5+ {[%clk
0:00:16]} 0-1

[Event "Early-Titled-Tuesday-Blitz-May-07-2024"]
[Site "Chess.com"]
[Date "2024.05.07"]
[Round "3"]
[White "Chernov_Alexander_A"]
[Black "UK_23"]
[Result "0-1"]
[WhiteElo "2249"]
[BlackElo "2443"]
[TimeControl "180+1"]
[EndTime "8:32:13 PDT"]
[Termination "UK_23 won on time"]

1. d4 {[%clk 0:03:00.5]} 1... Nf6 {[%clk 0:03:00.1]} 2. Nf3 {[%clk 0:02:58.9]}
2... c5 {[%clk 0:03:01]} 3. d5 {[%clk 0:02:57.9]} 3... b5 {[%clk 0:03:01]} 4. c4
{[%clk 0:02:54.1]} 4... b4 {[%clk 0:03:00.4]} 5. a3 {[%clk 0:02:53.4]} 5... g6
{[%clk 0:02:52.2]} 6. axb4 {[%clk 0:02:45.9]} 6... cxb4 {[%clk 0:02:53.1]} 7.
Nbd2 {[%clk 0:02:43.8]} 7... a5 {[%clk 0:02:46.5]} 8. e4 {[%clk 0:02:34.8]} 8...
d6 {[%clk 0:02:46.3]} 9. e5 {[%clk 0:02:26.3]} 9... dxe5 {[%clk 0:02:44.1]} 10.
Nxe5 {[%clk 0:02:26.2]} 10... Bg7 {[%clk 0:02:44.8]} 11. Ndf3 {[%clk 0:02:23.5]}
11... O-O {[%clk 0:02:42.2]} 12. Be2 {[%clk 0:02:17.1]} 12... Na6 {[%clk
0:02:41.7]} 13. O-O {[%clk 0:02:07.7]} 13... Nc5 {[%clk 0:02:40.2]} 14. Nd3
{[%clk 0:02:00.5]} 14... Nxd3 {[%clk 0:02:32.9]} 15. Bxd3 {[%clk 0:01:58.3]}
15... Bg4 {[%clk 0:02:33.1]} 16. h3 {[%clk 0:01:57]} 16... Bxf3 {[%clk
0:02:33.1]} 17. Qxf3 {[%clk 0:01:57.3]} 17... Qc7 {[%clk 0:02:33.7]} 18. Bf4
{[%clk 0:01:54.3]} 18... Qc5 {[%clk 0:02:33.9]} 19. Be3 {[%clk 0:01:45.3]} 19...
Qc7 {[%clk 0:02:33.1]} 20. Bf4 {[%clk 0:01:45.2]} 20... Qb7 {[%clk 0:02:25.3]}
21. b3 {[%clk 0:01:26.2]} 21... Nh5 {[%clk 0:02:21.6]} 22. Ra4 {[%clk
0:01:16.4]} 22... Nxf4 {[%clk 0:02:20.5]} 23. Qxf4 {[%clk 0:01:16.5]} 23... Bb2
{[%clk 0:02:06.7]} 24. Ra2 {[%clk 0:01:13.6]} 24... Bc3 {[%clk 0:01:58.5]} 25.
Ra4 {[%clk 0:01:07.6]} 25... Qb6 {[%clk 0:01:52.5]} 26. h4 {[%clk 0:01:04.4]}
26... Rae8 {[%clk 0:01:46.4]} 27. h5 {[%clk 0:01:02.7]} 27... e5 {[%clk
0:01:43.6]} 28. dxe6 {[%clk 0:00:47.4]} 28... Rxe6 {[%clk 0:01:39.9]} 29. hxg6
{[%clk 0:00:45.2]} 29... hxg6 {[%clk 0:01:40.8]} 30. Ra2 {[%clk 0:00:37]} 30...
Rfe8 {[%clk 0:01:40]} 31. g3 {[%clk 0:00:34]} 31... Kg7 {[%clk 0:01:30.6]} 32.
Kg2 {[%clk 0:00:33.4]} 32... Rf6 {[%clk 0:01:19.8]} 33. Qg5 {[%clk 0:00:29.5]}
33... Re5 {[%clk 0:01:16.6]} 34. Qg4 {[%clk 0:00:26.9]} 34... Qc5 {[%clk
0:01:10.4]} 35. Re2 {[%clk 0:00:25.4]} 35... Rxe2 {[%clk 0:00:58.5]} 36. Bxe2
{[%clk 0:00:21.8]} 36... a4 {[%clk 0:00:58.7]} 37. bxa4 {[%clk 0:00:21.2]} 37...
Qc6+ {[%clk 0:00:56.6]} 38. Bf3 {[%clk 0:00:20.5]} 38... Qxa4 {[%clk 0:00:56.8]}
39. Bd5 {[%clk 0:00:19.3]} 39... b3 {[%clk 0:00:55.5]} 40. Rh1 {[%clk
0:00:17.5]} 40... Rf5 {[%clk 0:00:38]} 41. Qe4 {[%clk 0:00:10.3]} 41... b2
{[%clk 0:00:32.5]} 42. Qe7 {[%clk 0:00:08.6]} 42... Qc2 {[%clk 0:00:21.3]} 43.
Rf1 {[%clk 0:00:03.4]} 43... b1=Q {[%clk 0:00:20.1]} 0-1

[Event "Early-Titled-Tuesday-Blitz-May-07-2024"]
[Site "Chess.com"]
[Date "2024.05.07"]
[Round "3"]
[White "tusplingher"]
[Black "FXDon77"]
[Result "0-1"]
[WhiteElo "2557"]
[BlackElo "2853"]
[TimeControl "180+1"]
[EndTime "8:32:16 PDT"]
[Termination "FXDon77 won by checkmate"]

1. e4 {[%clk 0:03:00.9]} 1... c5 {[%clk 0:02:59.8]} 2. Nf3 {[%clk 0:03:00.7]}
2... Nc6 {[%clk 0:03:00.3]} 3. Bc4 {[%clk 0:03:00]} 3... e6 {[%clk 0:02:59.6]}
4. O-O {[%clk 0:02:59.8]} 4... Nf6 {[%clk 0:02:58.5]} 5. Re1 {[%clk 0:02:59.4]}
5... d6 {[%clk 0:02:55.9]} 6. c3 {[%clk 0:02:59]} 6... Be7 {[%clk 0:02:53.5]} 7.
Bf1 {[%clk 0:02:58.8]} 7... e5 {[%clk 0:02:48.4]} 8. d4 {[%clk 0:02:56.1]} 8...
cxd4 {[%clk 0:02:46]} 9. cxd4 {[%clk 0:02:56.1]} 9... Bg4 {[%clk 0:02:46.7]} 10.
d5 {[%clk 0:02:56.4]} 10... Nd4 {[%clk 0:02:42.9]} 11. Be3 {[%clk 0:02:51.4]}
11... Nxf3+ {[%clk 0:02:40.8]} 12. gxf3 {[%clk 0:02:51.3]} 12... Bd7 {[%clk
0:02:40.5]} 13. Nc3 {[%clk 0:02:50.7]} 13... Nh5 {[%clk 0:02:36.2]} 14. Qd2
{[%clk 0:02:36.9]} 14... O-O {[%clk 0:02:29.8]} 15. Rac1 {[%clk 0:02:34.4]}
15... f5 {[%clk 0:02:25.4]} 16. exf5 {[%clk 0:02:24.4]} 16... Rxf5 {[%clk
0:02:21.8]} 17. Bg2 {[%clk 0:02:16]} 17... Nf4 {[%clk 0:02:13.4]} 18. Bxf4
{[%clk 0:02:11.2]} 18... Rxf4 {[%clk 0:02:12.1]} 19. Ne4 {[%clk 0:02:08.1]}
19... Bf5 {[%clk 0:02:00.5]} 20. Ng3 {[%clk 0:02:02.5]} 20... Bg5 {[%clk
0:01:46.9]} 21. Qe2 {[%clk 0:01:52.1]} 21... Bg6 {[%clk 0:01:41.9]} 22. Rc3
{[%clk 0:01:39.6]} 22... Rc8 {[%clk 0:01:37.6]} 23. Rec1 {[%clk 0:01:34.8]}
23... Rxc3 {[%clk 0:01:35.9]} 24. Rxc3 {[%clk 0:01:35.1]} 24... h6 {[%clk
0:01:26.4]} 25. Bh3 {[%clk 0:01:30.4]} 25... Kh7 {[%clk 0:01:25.3]} 26. Be6
{[%clk 0:01:19.1]} 26... Qa5 {[%clk 0:01:18]} 27. Rc8 {[%clk 0:01:11.2]} 27...
Bd8 {[%clk 0:00:55]} 28. Ne4 {[%clk 0:00:50.8]} 28... Bxe4 {[%clk 0:00:52.3]}
29. fxe4 {[%clk 0:00:51]} 29... g6 {[%clk 0:00:51.5]} 30. b4 {[%clk 0:00:44.5]}
30... Qb6 {[%clk 0:00:48.1]} 31. Qc2 {[%clk 0:00:40.7]} 31... h5 {[%clk
0:00:44.4]} 32. a4 {[%clk 0:00:39.6]} 32... a5 {[%clk 0:00:39.7]} 33. bxa5
{[%clk 0:00:37.3]} 33... Qxa5 {[%clk 0:00:39.1]} 34. Rb8 {[%clk 0:00:20.7]}
34... Bh4 {[%clk 0:00:33.9]} 35. Rxb7+ {[%clk 0:00:16.6]} 35... Kh6 {[%clk
0:00:33.6]} 36. Rb1 {[%clk 0:00:06.3]} 36... Bxf2+ {[%clk 0:00:29]} 37. Kh1
{[%clk 0:00:05.6]} 37... Bd4 {[%clk 0:00:25.8]} 38. Rd1 {[%clk 0:00:02.6]} 38...
Qa6 {[%clk 0:00:22.7]} 39. Qd3 {[%clk 0:00:02.8]} 39... Qxa4 {[%clk 0:00:21.8]}
40. Qe2 {[%clk 0:00:02.4]} 40... Rf2 {[%clk 0:00:21.1]} 41. Qd3 {[%clk
0:00:02.4]} 41... Qa2 {[%clk 0:00:20.5]} 42. Qh3 {[%clk 0:00:01.6]} 42... Qe2
{[%clk 0:00:20.1]} 43. Rg1 {[%clk 0:00:01.8]} 43... Qxe4+ {[%clk 0:00:20.1]} 44.
Rg2 {[%clk 0:00:01.8]} 44... Rf1# {[%clk 0:00:20.3]} 0-1

[Event "Early-Titled-Tuesday-Blitz-May-07-2024"]
[Site "Chess.com"]
[Date "2024.05.07"]
[Round "3"]
[White "Genghis_K"]
[Black "wqws"]
[Result "1-0"]
[WhiteElo "2914"]
[BlackElo "2689"]
[TimeControl "180+1"]
[EndTime "8:32:17 PDT"]
[Termination "Genghis_K won by checkmate"]

1. e4 {[%clk 0:02:50.8]} 1... e5 {[%clk 0:02:59.1]} 2. Nf3 {[%clk 0:02:50.9]}
2... Nc6 {[%clk 0:02:54.4]} 3. d4 {[%clk 0:02:51.3]} 3... exd4 {[%clk
0:02:54.3]} 4. Nxd4 {[%clk 0:02:52.2]} 4... Nf6 {[%clk 0:02:54.6]} 5. Nxc6
{[%clk 0:02:52.5]} 5... bxc6 {[%clk 0:02:54.6]} 6. Bd3 {[%clk 0:02:53.4]} 6...
d5 {[%clk 0:02:50.6]} 7. exd5 {[%clk 0:02:54.3]} 7... cxd5 {[%clk 0:02:49.3]} 8.
O-O {[%clk 0:02:54.9]} 8... Be7 {[%clk 0:02:46.6]} 9. c4 {[%clk 0:02:55]} 9...
O-O {[%clk 0:02:43]} 10. Nc3 {[%clk 0:02:55.3]} 10... d4 {[%clk 0:02:41.9]} 11.
Ne4 {[%clk 0:02:55.5]} 11... Bb7 {[%clk 0:02:40.1]} 12. Nxf6+ {[%clk 0:02:55.1]}
12... Bxf6 {[%clk 0:02:41]} 13. b4 {[%clk 0:02:55.8]} 13... Re8 {[%clk
0:02:36.6]} 14. Bf4 {[%clk 0:02:51]} 14... Be5 {[%clk 0:02:27]} 15. Qg4 {[%clk
0:02:26.4]} 15... Qf6 {[%clk 0:02:04.6]} 16. Bg3 {[%clk 0:02:13.6]} 16... Bxg3
{[%clk 0:01:37.6]} 17. hxg3 {[%clk 0:02:12.8]} 17... g6 {[%clk 0:01:26.9]} 18.
Rad1 {[%clk 0:02:08.7]} 18... h5 {[%clk 0:01:25.2]} 19. Qh4 {[%clk 0:02:05.4]}
19... Qxh4 {[%clk 0:01:23.7]} 20. gxh4 {[%clk 0:02:05.7]} 20... Rad8 {[%clk
0:01:21.7]} 21. Rfe1 {[%clk 0:02:03.5]} 21... Kf8 {[%clk 0:01:16.4]} 22. f3
{[%clk 0:01:56.8]} 22... Re3 {[%clk 0:01:11.4]} 23. Kf2 {[%clk 0:01:57.2]} 23...
Rxe1 {[%clk 0:01:11.1]} 24. Rxe1 {[%clk 0:01:56.6]} 24... Bc8 {[%clk 0:01:08.1]}
25. Re5 {[%clk 0:01:54.9]} 25... Be6 {[%clk 0:01:06.1]} 26. Ra5 {[%clk
0:01:51.5]} 26... Rb8 {[%clk 0:00:52.7]} 27. a3 {[%clk 0:01:51.1]} 27... Rb7
{[%clk 0:00:44.3]} 28. Be4 {[%clk 0:01:51.1]} 28... Rb8 {[%clk 0:00:44.7]} 29.
c5 {[%clk 0:01:45.2]} 29... Rd8 {[%clk 0:00:44.5]} 30. Bd3 {[%clk 0:01:37.8]}
30... Ra8 {[%clk 0:00:43.3]} 31. Ke2 {[%clk 0:01:34.4]} 31... Kg7 {[%clk
0:00:38.8]} 32. Be4 {[%clk 0:01:30.9]} 32... Re8 {[%clk 0:00:38.1]} 33. Rxa7
{[%clk 0:01:23]} 33... f5 {[%clk 0:00:37.9]} 34. Bd3 {[%clk 0:01:21]} 34... g5
{[%clk 0:00:35.9]} 35. Rxc7+ {[%clk 0:01:20.2]} 35... Kg6 {[%clk 0:00:36.3]} 36.
hxg5 {[%clk 0:01:19]} 36... Kxg5 {[%clk 0:00:37.2]} 37. Kd2 {[%clk 0:01:12.3]}
37... Kf4 {[%clk 0:00:36.5]} 38. Rg7 {[%clk 0:01:12.7]} 38... h4 {[%clk
0:00:35.7]} 39. a4 {[%clk 0:01:06]} 39... Bd5 {[%clk 0:00:26.8]} 40. a5 {[%clk
0:01:03.8]} 40... h3 {[%clk 0:00:23.9]} 41. gxh3 {[%clk 0:01:03.6]} 41... Bxf3
{[%clk 0:00:24.1]} 42. b5 {[%clk 0:01:00.7]} 42... Rh8 {[%clk 0:00:23.6]} 43.
Bf1 {[%clk 0:00:57.4]} 43... Re8 {[%clk 0:00:20]} 44. c6 {[%clk 0:00:55.6]}
44... Re3 {[%clk 0:00:20.1]} 45. Bd3 {[%clk 0:00:49]} 45... Be4 {[%clk
0:00:19.2]} 46. Bxe4 {[%clk 0:00:47.1]} 46... fxe4 {[%clk 0:00:19.6]} 47. b6
{[%clk 0:00:44.8]} 47... Rc3 {[%clk 0:00:19.5]} 48. Rf7+ {[%clk 0:00:42.1]}
48... Kg3 {[%clk 0:00:14.9]} 49. b7 {[%clk 0:00:40.7]} 49... e3+ {[%clk
0:00:11.1]} 50. Ke2 {[%clk 0:00:39.1]} 50... Rc2+ {[%clk 0:00:11.3]} 51. Kd3
{[%clk 0:00:38.7]} 51... Rd2+ {[%clk 0:00:11.2]} 52. Ke4 {[%clk 0:00:37]} 52...
e2 {[%clk 0:00:11.2]} 53. b8=Q+ {[%clk 0:00:37.3]} 53... Kg2 {[%clk 0:00:10.2]}
54. Rg7+ {[%clk 0:00:37]} 54... Kf2 {[%clk 0:00:08.6]} 55. Qg3+ {[%clk
0:00:37.1]} 55... Kf1 {[%clk 0:00:08.8]} 56. Qg1# {[%clk 0:00:37.8]} 1-0